fUST/lending_fUST_20250910
["ID","MTS","AMOUNT","RATE_DAILY","PERIOD"]
[384491811,1757442644776,-483.19625541,0.00013698,2]
[384491814,1757442644787,-480.0,0.00013698,2]
[384491816,1757442644796,-480.0,0.00013698,2]
[384491818,1757442644806,-410.9844104,0.00013698,2]
[384491820,1757442644816,-480.0,0.00013698,2]
[384491822,1757442644825,-506.8797394,0.00013698,2]
[384491824,1757442644834,-480.0,0.00013698,2]
[384491826,1757442644844,-286.99555922,0.00013698,2]
[384491828,1757442644854,-480.0,0.00013698,2]
[384491830,1757442644863,-480.0,0.00013698,2]
[384491832,1757442644873,-480.0,0.00013698,2]
[384491834,1757442644882,-480.0,0.00013698,2]
[384491836,1757442644892,-480.0,0.00013698,2]
[384491838,1757442644901,-480.0,0.00013698,2]
[384491840,1757442644910,-480.0,0.00013698,2]
[384491842,1757442644919,-480.0,0.00013698,2]
[384491844,1757442644930,-480.0,0.00013698,2]
[384491846,1757442644940,-480.0,0.00013698,2]
[384491848,1757442644949,-480.0,0.00013698,2]
[384491850,1757442644958,-480.0,0.00013698,2]
[384491852,1757442644968,-151.0,0.00013698,2]
[384491854,1757442644977,-2146.51,0.00013698,2]
[384491856,1757442644987,-656.04,0.00013698,2]
[384491858,1757442644997,-151.0,0.00013698,2]
[384491860,1757442645006,-480.0,0.00013698,2]
[384491862,1757442645016,-697.53,0.00013698,2]
[384491864,1757442645029,-480.0,0.00013698,2]
[384491866,1757442645038,-482.24831046,0.00013698,2]
[384491868,1757442645048,-536.27,0.00013698,2]
[384491870,1757442645057,-480.0,0.00013698,2]
[384491872,1757442645067,-480.0,0.00013698,2]
[384491874,1757442645076,-480.0,0.00013698,2]
[384491876,1757442645085,-727.31,0.00013698,2]
[384491878,1757442645095,-577.9,0.00013698,2]
[384491880,1757442645104,-480.0,0.00013698,2]
[384491882,1757442645114,-506.18,0.00013698,2]
[384491884,1757442645124,-480.0,0.00013698,2]
[384491886,1757442645133,-480.0,0.00013698,2]
[384491888,1757442645142,-480.0,0.00013698,2]
[384491890,1757442645152,-480.0,0.00013698,2]
[384491892,1757442645161,-480.0,0.00013698,2]
[384491894,1757442645170,-480.0,0.00013698,2]
[384491896,1757442645179,-567.2,0.00013698,2]
[384491898,1757442645189,-480.0,0.00013698,2]
[384491900,1757442645198,-484.38603467,0.00013698,2]
[384491902,1757442645208,-480.0,0.00013698,2]
[384491904,1757442645217,-480.0,0.00013698,2]
[384491906,1757442645227,-480.0,0.00013698,2]
[384491909,1757442645236,-480.0,0.00013698,2]
[384491911,1757442645246,-318.84201018,0.00013698,2]
[384491912,1757442645255,-480.0,0.00013698,2]
[384491915,1757442645264,-480.0,0.00013698,2]
[384491916,1757442645274,-480.0,0.00013698,2]
[384491918,1757442645283,-480.0,0.00013698,2]
[384491920,1757442645292,-480.0,0.00013698,2]
[384491923,1757442645302,-964.71,0.00013698,2]
[384491925,1757442645312,-480.0,0.00013698,2]
[384491926,1757442645321,-480.0,0.00013698,2]
[384491929,1757442645331,-480.0,0.00013698,2]
[384491930,1757442645340,-236.16,0.00013698,2]
[384491932,1757442645350,-260.140899,0.00013698,2]
[384491934,1757442645359,-157.0,0.00013698,2]
[384491937,1757442645369,-157.0,0.00013698,2]
[384491939,1757442645379,-587.21,0.00013698,2]
[384491941,1757442645388,-157.0,0.00013698,2]
[384491943,1757442645397,-480.0,0.00013698,2]
[384491945,1757442645407,-461.77904097,0.00013698,2]
[384491947,1757442645416,-480.0,0.00013698,2]
[384491949,1757442645425,-742.0,0.00013698,2]
[384491951,1757442645434,-480.0,0.00013698,2]
[384491953,1757442645443,-500.0,0.00013698,2]
[384491955,1757442645453,-480.0,0.00013698,2]
[384491957,1757442645462,-480.0,0.00013698,2]
[384491959,1757442645472,-1444.89,0.00013698,2]
[384491961,1757442645481,-480.0,0.00013698,2]
[384491963,1757442645491,-157.0,0.00013698,2]
[384491965,1757442645501,-157.0,0.00013698,2]
[384491967,1757442645511,-157.0,0.00013698,2]
[384491969,1757442645520,-157.0,0.00013698,2]
[384491971,1757442645529,-157.0,0.00013698,2]
[384491973,1757442645539,-192.654803,0.00013698,2]
[384491975,1757442645548,-480.0,0.00013698,2]
[384491977,1757442645557,-151.0,0.00013698,2]
[384491979,1757442645566,-480.0,0.00013698,2]
[384491981,1757442645575,-480.0,0.00013698,2]
[384491983,1757442645585,-662.85,0.00013698,2]
[384491985,1757442645594,-3874.65,0.00013698,2]
[384491987,1757442645603,-151.0,0.00013698,2]
[384491989,1757442645613,-480.0,0.00013698,2]
[384491991,1757442645622,-480.0,0.00013698,2]
[384491993,1757442645631,-480.0,0.00013698,2]
[384491995,1757442645640,-480.0,0.00013698,2]
[384491997,1757442645649,-483.2922134,0.00013698,2]
[384491999,1757442645659,-480.0,0.00013698,2]
[384492001,1757442645668,-480.0,0.00013698,2]
[384492003,1757442645677,-480.0,0.00013698,2]
[384492005,1757442645686,-480.0,0.00013698,2]
[384492007,1757442645695,-480.0,0.00013698,2]
[384492009,1757442645704,-480.0,0.00013698,2]
[384492011,1757442645713,-2040.55,0.00013698,2]
[384492013,1757442645722,-480.0,0.00013698,2]
[384492015,1757442645731,-480.0,0.00013698,2]
[384492016,1757442645740,-968.54,0.00013698,2]
[384492018,1757442645750,-480.0,0.00013698,2]
[384492020,1757442645762,-3150.99,0.00013698,2]
[384492022,1757442645771,-480.0,0.00013698,2]
[384492023,1757442645780,-480.0,0.00013698,2]
[384492024,1757442645790,-151.0,0.00013698,2]
[384492025,1757442645800,-867.78,0.00013698,2]
[384492027,1757442645810,-189.57905706,0.00013698,2]
[384492028,1757442645820,-151.0,0.00013698,2]
[384492029,1757442645829,-157.0,0.00013698,2]
[384492030,1757442645839,-190.62442388,0.00013698,2]
[384492031,1757442645848,-157.0,0.00013698,2]
[384492032,1757442645857,-680.85,0.00013698,2]
[384492033,1757442645866,-480.0,0.00013698,2]
[384492034,1757442645875,-157.0,0.00013698,2]
[384492035,1757442645885,-2752.01,0.00013698,2]
[384492036,1757442645895,-480.0,0.00013698,2]
[384492037,1757442645905,-289.16553519,0.00013698,2]
[384492039,1757442645914,-157.0,0.00013698,2]
[384492041,1757442645924,-480.0,0.00013698,2]
[384492043,1757442645933,-480.0,0.00013698,2]
[384492045,1757442645942,-151.0,0.00013698,2]
[384492047,1757442645951,-151.0,0.00013698,2]
[384492049,1757442645960,-480.0,0.00013698,2]
[384492051,1757442645969,-480.0,0.00013698,2]
[384492053,1757442645978,-31001.39,0.00013698,2]
[384492055,1757442645987,-151.0,0.00013698,2]
[384492057,1757442645997,-480.0,0.00013698,2]
[384492059,1757442646006,-480.0,0.00013698,2]
[384492061,1757442646015,-668.87,0.00013698,2]
[384492063,1757442646025,-151.0,0.00013698,2]
[384492065,1757442646034,-792.73,0.00013698,2]
[384492067,1757442646044,-480.0,0.00013698,2]
[384492069,1757442646053,-480.0,0.00013698,2]
[384492071,1757442646063,-480.0,0.00013698,2]
[384492073,1757442646072,-591.73725784,0.00013698,2]
[384492074,1757442646082,-391.19329907,0.00013698,2]
[384492076,1757442646091,-480.0,0.00013698,2]
[384492078,1757442646101,-480.0,0.00013698,2]
[384492080,1757442646111,-246.774864,0.00013698,2]
[384492082,1757442646120,-1120.56,0.00013698,2]
[384492084,1757442646130,-480.0,0.00013698,2]
[384492086,1757442646140,-533.09,0.00013698,2]
[384492088,1757442646150,-3388.6,0.00013698,2]
[384492090,1757442646159,-480.0,0.00013698,2]
[384492092,1757442646168,-480.0,0.00013698,2]
[384492094,1757442646178,-855.2,0.00013698,2]
[384492096,1757442646187,-566.3,0.00013698,2]
[384492098,1757442646196,-480.0,0.00013698,2]
[384492115,1757442646206,-480.0,0.00013698,2]
[384492117,1757442646355,-1578.83,0.00013698,2]
[384492119,1757442646365,-480.0,0.00013698,2]
[384492121,1757442646374,-231.63664,0.00013698,2]
[384492123,1757442646384,-231.63664,0.00013698,2]
[384492125,1757442646393,-746.99,0.00013698,2]
[384492127,1757442646402,-1169.6,0.00013698,2]
[384492129,1757442646411,-231.63664,0.00013698,2]
[384492131,1757442646421,-794.53,0.00013698,2]
[384492133,1757442646430,-151.0,0.00013698,2]
[384492135,1757442646439,-231.63664,0.00013698,2]
[384492138,1757442646449,-2051.88,0.00013698,2]
[384492140,1757442646459,-300.45299938,0.00013698,2]
[384492142,1757442646468,-480.0,0.00013698,2]
[384492144,1757442646477,-480.0,0.00013698,2]
[384492146,1757442646488,-494.4,0.00013698,2]
[384492148,1757442646497,-480.0,0.00013698,2]
[384492150,1757442646506,-480.0,0.00013698,2]
[384492152,1757442646516,-1072.51,0.00013698,2]
[384492154,1757442646525,-480.0,0.00013698,2]
[384492156,1757442646534,-846.94,0.00013698,2]
[384492158,1757442646543,-480.0,0.00013698,2]
[384492160,1757442646552,-480.0,0.00013698,2]
[384492162,1757442646562,-480.0,0.00013698,2]
[384492164,1757442646571,-480.0,0.00013698,2]
[384492166,1757442646580,-2073.11981606,0.00013698,2]
[384492245,1757442647326,751.71348346,0.00013631,2]
[384492249,1757442647348,-192.68018394,0.00013698,2]
[384492251,1757442647358,-480.0,0.00013698,2]
[384492253,1757442647367,-1368.71,0.00013698,2]
[384492255,1757442647377,-880.65,0.00013698,2]
[384492257,1757442647386,-480.0,0.00013698,2]
[384492259,1757442647397,-929.09,0.00013698,2]
[384492261,1757442647406,-480.0,0.00013698,2]
[384492263,1757442647415,-480.0,0.00013698,2]
[384492265,1757442647424,-480.0,0.00013698,2]
[384492267,1757442647434,-481.52879775,0.00013698,2]
[384492269,1757442647443,-480.0,0.00013698,2]
[384492271,1757442647452,-480.0,0.00013698,2]
[384492273,1757442647461,-480.0,0.00013698,2]
[384492275,1757442647471,-657.24,0.00013698,2]
[384492277,1757442647480,-480.0,0.00013698,2]
[384492279,1757442647489,-951.87,0.00013698,2]
[384492281,1757442647498,-480.0,0.00013698,2]
[384492283,1757442647507,-480.0,0.00013698,2]
[384492285,1757442647516,-593.59,0.00013698,2]
[384492287,1757442647525,-480.0,0.00013698,2]
[384492289,1757442647535,-480.0,0.00013698,2]
[384492291,1757442647544,-480.0,0.00013698,2]
[384492293,1757442647554,-2980.71,0.00013698,2]
[384492295,1757442647564,-1434.94,0.00013698,2]
[384492297,1757442647573,-480.0,0.00013698,2]
[384492299,1757442647582,-723.66,0.00013698,2]
[384492301,1757442647593,-991.18,0.00013698,2]
[384492303,1757442647603,-487.47036349,0.00013698,2]
[384492305,1757442647612,-480.0,0.00013698,2]
[384492307,1757442647621,-480.0,0.00013698,2]
[384492309,1757442647631,-480.0,0.00013698,2]
[384492311,1757442647640,-480.0,0.00013698,2]
[384492313,1757442647649,-480.0,0.00013698,2]
[384492315,1757442647659,-480.0,0.00013698,2]
[384492317,1757442647668,-480.0,0.00013698,2]
[384492319,1757442647677,-2333.59,0.00013698,2]
[384492321,1757442647687,-557.18,0.00013698,2]
[384492323,1757442647696,-480.0,0.00013698,2]
[384492325,1757442647705,-818.47,0.00013698,2]
[384492327,1757442647715,-1054.86,0.00013698,2]
[384492329,1757442647724,-480.0,0.00013698,2]
[384492331,1757442647733,-480.0,0.00013698,2]
[384492333,1757442647742,-480.0,0.00013698,2]
[384492335,1757442647751,-480.0,0.00013698,2]
[384492336,1757442647761,-480.0,0.00013698,2]
[384492338,1757442647770,-480.0,0.00013698,2]
[384492340,1757442647780,-480.0,0.00013698,2]
[384492342,1757442647789,-1786.03,0.00013698,2]
[384492344,1757442647799,-480.0,0.00013698,2]
[384492346,1757442647808,-5185.72,0.00013698,2]
[384492348,1757442647817,-480.0,0.00013698,2]
[384492350,1757442647826,-601.53,0.00013698,2]
[384492353,1757442647836,-50.43592593,0.00013698,2]
[384492355,1757442647854,-429.56407407,0.00013698,2]
[384492357,1757442647863,-480.0,0.00013698,2]
[384492359,1757442647872,-480.0,0.00013698,2]
[384492361,1757442647882,-480.0,0.00013698,2]
[384492363,1757442647891,-480.0,0.00013698,2]
[384492365,1757442647901,-9676.48,0.00013698,2]
[384492367,1757442647910,-480.0,0.00013698,2]
[384492369,1757442647920,-486.79,0.00013698,2]
[384492371,1757442647929,-480.0,0.00013698,2]
[384492373,1757442647938,-5431.79,0.00013698,2]
[384492375,1757442647947,-480.0,0.00013698,2]
[384492377,1757442647956,-1176.66,0.00013698,2]
[384492379,1757442647965,-649.14,0.00013698,2]
[384492381,1757442647975,-480.0,0.00013698,2]
[384492382,1757442647984,-480.0,0.00013698,2]
[384492383,1757442647993,-480.0,0.00013698,2]
[384492384,1757442648003,-480.0,0.00013698,2]
[384492385,1757442648011,-4108.95,0.00013698,2]
[384492386,1757442648021,-510.34,0.00013698,2]
[384492387,1757442648030,-2130.61,0.00013698,2]
[384492388,1757442648039,-211.714113,0.00013698,2]
[384492389,1757442648048,-1343.31,0.00013698,2]
[384492390,1757442648058,-211.714113,0.00013698,2]
[384492391,1757442648068,-211.714113,0.00013698,2]
[384492392,1757442648078,-1083.44,0.00013698,2]
[384492393,1757442648088,-211.714113,0.00013698,2]
[384492394,1757442648097,-1061.98,0.00013698,2]
[384492396,1757442648107,-480.0,0.00013698,2]
[384492397,1757442648116,-849.19,0.00013698,2]
[384492400,1757442648126,-500.0,0.00013698,2]
[384492401,1757442648136,-1039.23379,0.00013699,2]
[384492403,1757442648145,-151.0,0.00013699,2]
[384492405,1757442648157,-151.0,0.00013699,2]
[384492407,1757442648167,-151.0,0.00013699,2]
[384492409,1757442648176,-162.26816,0.00013699,2]
[384492411,1757442648185,-151.0,0.00013699,2]
[384492413,1757442648195,-151.684976,0.00013699,2]
[384492415,1757442648204,-168.0,0.00013701,2]
[384492417,1757442648213,-800.0,0.00013703,2]
[384492420,1757442648230,-800.0,0.00013712,2]
[384492422,1757442648240,-800.0,0.00013712,2]
[384492424,1757442648249,-151.0,0.00013712,2]
[384492426,1757442648259,-800.0,0.0001372,2]
[384492428,1757442648268,-398.0,0.0001372,2]
[384492430,1757442648278,-1050.47759825,0.00013731,2]
[384492431,1757442648288,-151.0,0.00013731,2]
[384492434,1757442648297,-151.0,0.00013731,2]
[384492435,1757442648308,-151.0,0.00013731,2]
[384492437,1757442648317,-211.993296,0.00013731,2]
[384492439,1757442648327,-151.0,0.00013731,2]
[384492441,1757442648336,-2105.41764886,0.00013745,2]
[384492443,1757442648346,-800.0,0.00013752,2]
[384492446,1757442648356,-800.0,0.00013777,2]
[384492448,1757442648365,-211.714113,0.00013777,2]
[384492449,1757442648375,-211.714113,0.00013777,2]
[384492452,1757442648384,-211.714113,0.00013777,2]
[384492454,1757442648394,-211.714113,0.00013777,2]
[384492455,1757442648404,-846.80158213,0.00013777,2]
[384492457,1757442648413,-233.05759179,0.00013777,2]
[384492459,1757442648423,-203.28455737,0.00013777,2]
[384492461,1757442648433,-530.79566296,0.00013777,2]
[384492463,1757442648443,-160.0,0.00013777,2]
[384492465,1757442648452,-417.15472785,0.00013777,2]
[384492467,1757442648462,-217.65034598,0.00013777,2]
[384492469,1757442648471,-160.0,0.00013777,2]
[384492471,1757442648480,-160.0,0.00013777,2]
[384492473,1757442648490,-160.0,0.00013779,2]
[384492475,1757442648499,-162.80219612,0.00013785,2]
[384492477,1757442648508,-800.0,0.00013785,2]
[384492479,1757442648518,-800.0,0.00013799,2]
[384492481,1757442648528,-2183.31810187,0.000138,2]
[384492483,1757442648537,-800.0,0.00013815,2]
[384492486,1757442648547,-800.0,0.00013819,2]
[384492487,1757442648556,-800.0,0.00013835,2]
[384492489,1757442648565,-800.0,0.00013845,2]
[384492492,1757442648575,-800.0,0.00013848,2]
[384492493,1757442648585,-800.0,0.0001385,2]
[384492495,1757442648594,-800.0,0.00013854,2]
[384492497,1757442648603,-2309.93782991,0.00013855,2]
[384492499,1757442648613,-151.0,0.00013855,2]
[384492501,1757442648623,-151.0,0.00013855,2]
[384492504,1757442648632,-246.753734,0.00013855,2]
[384492505,1757442648642,-875.7966816,0.00013871,2]
[384492507,1757442648651,-151.0,0.00013871,2]
[384492509,1757442648660,-188.990011,0.00013871,2]
[384492511,1757442648670,-151.0,0.00013871,2]
[384492513,1757442648679,-151.0,0.00013871,2]
[384492515,1757442648689,-231.63664,0.00013871,2]
[384492517,1757442648699,-231.63664,0.00013871,2]
[384492520,1757442648714,-231.63664,0.00013871,2]
[384492522,1757442648723,-231.63664,0.00013871,2]
[384492524,1757442648733,-162.310329,0.00013872,2]
[384492526,1757442648743,-151.0,0.00013872,2]
[384492528,1757442648753,-151.0,0.00013872,2]
[384492530,1757442648763,-151.0,0.00013872,2]
[384492532,1757442648772,-151.0,0.00013872,2]
[384492534,1757442648781,-195.080464,0.00013872,2]
[384492535,1757442648791,-151.0,0.00013872,2]
[384492537,1757442648800,-151.0,0.00013872,2]
[384492539,1757442648809,-151.0,0.00013872,2]
[384492541,1757442648819,-151.0,0.00013872,2]
[384492543,1757442648828,-151.0,0.00013872,2]
[384492546,1757442648838,-151.0,0.00013872,2]
[384492548,1757442648848,-231.63664,0.00013872,2]
[384492550,1757442648858,-231.63664,0.00013872,2]
[384492552,1757442648868,-231.63664,0.00013872,2]
[384492553,1757442648878,-151.0,0.00013872,2]
[384492556,1757442648888,-231.63664,0.00013872,2]
[384492558,1757442648897,-211.714113,0.00013872,2]
[384492560,1757442648907,-211.714113,0.00013872,2]
[384492562,1757442648916,-211.714113,0.00013872,2]
[384492563,1757442648926,-211.714113,0.00013872,2]
[384492565,1757442648936,-85418.43628949,0.00013872,2]
[384492567,1757442648946,-500.0,0.00013873,2]
[384492569,1757442648955,-500.0,0.00013873,2]
[384492571,1757442648965,-500.0,0.00013873,2]
[384492573,1757442648974,-500.0,0.00013873,2]
[384492575,1757442648984,-500.0,0.00013873,2]
[384492578,1757442648994,-348.75309488,0.00013885,2]
[384492580,1757442649004,-398.0,0.00013895,2]
[384492582,1757442649014,-277.0,0.000139,2]
[384492584,1757442649023,-100531.44228188,0.000139,2]
[384492586,1757442649035,-151.0,0.000139,2]
[384492588,1757442649045,-211.714113,0.000139,2]
[384492590,1757442649054,-211.714113,0.000139,2]
[384492592,1757442649064,-211.714113,0.000139,2]
[384492594,1757442649074,-211.714113,0.000139,2]
[384492596,1757442649083,-168.0,0.00013906,2]
[384492598,1757442649093,-5624.87394,0.00013937,2]
[384492600,1757442649102,-254.971,0.00013939,2]
[384492602,1757442649113,-300.0,0.00013961,2]
[384492604,1757442649123,-300.0,0.00013961,2]
[384492606,1757442649133,-300.0,0.00013961,2]
[384492608,1757442649142,-300.0,0.00013961,2]
[384492610,1757442649153,-300.0,0.00013961,2]
[384492612,1757442649164,-300.0,0.00013961,2]
[384492614,1757442649173,-300.0,0.00013961,2]
[384492616,1757442649183,-300.0,0.00013961,2]
[384492618,1757442649193,-300.0,0.00013961,2]
[384492620,1757442649202,-300.0,0.00013961,2]
[384492622,1757442649212,-300.0,0.00013961,2]
[384492624,1757442649225,-300.0,0.00013961,2]
[384492626,1757442649235,-300.0,0.00013961,2]
[384492628,1757442649244,-300.0,0.00013961,2]
[384492630,1757442649254,-300.0,0.00013961,2]
[384492632,1757442649263,-600.0,0.00013961,2]
[384492634,1757442649272,-169.58336765,0.00013962,2]
[384492636,1757442649282,-4374.98066016,0.00013972,2]
[384492638,1757442649292,-157.0,0.00013972,2]
[384492640,1757442649301,-157.0,0.00013972,2]
[384492642,1757442649311,-157.0,0.00013972,2]
[384492644,1757442649321,-742.0,0.00013972,2]
[384492646,1757442649332,-500.0,0.00013972,2]
[384492648,1757442649343,-196.69649965,0.00013972,2]
[384492650,1757442649354,-157.0,0.00013972,2]
[384492652,1757442649372,-290.913793,0.00013972,2]
[384492653,1757442649382,-157.0,0.00013972,2]
[384492654,1757442649392,-157.0,0.00013972,2]
[384492655,1757442649402,-157.0,0.00013972,2]
[384492656,1757442649411,-157.0,0.00013972,2]
[384492657,1757442649420,-225.7,0.00013972,2]
[384492658,1757442649441,-157.0,0.00013972,2]
[384492659,1757442649451,-480.0,0.00013972,2]
[384492660,1757442649460,-480.0,0.00013972,2]
[384492661,1757442649470,-480.0,0.00013972,2]
[384492662,1757442649481,-480.0,0.00013972,2]
[384492663,1757442649490,-480.0,0.00013972,2]
[384492664,1757442649499,-480.0,0.00013972,2]
[384492665,1757442649509,-480.0,0.00013972,2]
[384492666,1757442649518,-1000.0,0.00013972,2]
[384492677,1757442649659,-238.46,0.00013972,2]
[384492679,1757442649669,-480.0,0.00013972,2]
[384492681,1757442649678,-482.53308073,0.00013972,2]
[384492683,1757442649688,-480.0,0.00013972,2]
[384492685,1757442649697,-605.04147431,0.00013972,2]
[384492687,1757442649706,-480.0,0.00013972,2]
[384492689,1757442649716,-480.0,0.00013972,2]
[384492691,1757442649725,-254.94686759,0.00013972,2]
[384492693,1757442649734,-726.09,0.00013972,2]
[384492695,1757442649743,-217.73365829,0.00013972,2]
[384492697,1757442649753,-480.0,0.00013972,2]
[384492699,1757442649762,-480.0,0.00013972,2]
[384492701,1757442649771,-348.46758612,0.00013972,2]
[384492703,1757442649780,-491.44,0.00013972,2]
[384492705,1757442649790,-437.10896823,0.00013972,2]
[384492707,1757442649800,-296.59840181,0.00013972,2]
[384492709,1757442649809,-187.1,0.00013972,2]
[384492711,1757442649818,-480.0,0.00013972,2]
[384492713,1757442649828,-480.0,0.00013972,2]
[384492715,1757442649837,-480.0,0.00013972,2]
[384492717,1757442649848,-480.0,0.00013972,2]
[384492719,1757442649857,-480.0,0.00013972,2]
[384492722,1757442649866,-480.0,0.00013972,2]
[384492723,1757442649876,-480.0,0.00013972,2]
[384492725,1757442649886,-480.0,0.00013972,2]
[384492727,1757442649895,-941.74,0.00013972,2]
[384492730,1757442649905,-151.0,0.00013972,2]
[384492731,1757442649914,-151.0,0.00013972,2]
[384492734,1757442649924,-151.0,0.00013972,2]
[384492736,1757442649933,-480.0,0.00013972,2]
[384492738,1757442649942,-590.26,0.00013972,2]
[384492740,1757442649951,-971.65,0.00013972,2]
[384492742,1757442649960,-480.0,0.00013972,2]
[384492744,1757442649970,-480.0,0.00013972,2]
[384492746,1757442649979,-480.0,0.00013972,2]
[384492748,1757442649988,-480.0,0.00013972,2]
[384492750,1757442649997,-480.0,0.00013972,2]
[384492752,1757442650006,-480.0,0.00013972,2]
[384492754,1757442650014,-480.0,0.00013972,2]
[384492756,1757442650023,-480.0,0.00013972,2]
[384492758,1757442650033,-826.54,0.00013972,2]
[384492760,1757442650042,-622.44585856,0.00013972,2]
[384492762,1757442650051,-1428.78,0.00013972,2]
[384492764,1757442650061,-845.53,0.00013972,2]
[384492766,1757442650070,-480.0,0.00013972,2]
[384492768,1757442650079,-582.24,0.00013972,2]
[384492770,1757442650088,-587.66,0.00013972,2]
[384492772,1757442650098,-480.0,0.00013972,2]
[384492773,1757442650108,-151.0,0.00013972,2]
[384492775,1757442650117,-151.0,0.00013972,2]
[384492777,1757442650126,-480.0,0.00013972,2]
[384492779,1757442650136,-480.0,0.00013972,2]
[384492781,1757442650145,-797.52,0.00013972,2]
[384492784,1757442650154,-480.0,0.00013972,2]
[384492785,1757442650164,-480.0,0.00013972,2]
[384492787,1757442650174,-480.0,0.00013972,2]
[384492789,1757442650183,-480.0,0.00013972,2]
[384492791,1757442650191,-480.0,0.00013972,2]
[384492793,1757442650202,-480.0,0.00013972,2]
[384492796,1757442650211,-480.0,0.00013972,2]
[384492798,1757442650220,-480.0,0.00013972,2]
[384492799,1757442650233,-543.33,0.00013972,2]
[384492801,1757442650243,-480.0,0.00013972,2]
[384492803,1757442650252,-368.00744578,0.00013972,2]
[384492804,1757442650261,-480.0,0.00013972,2]
[384492805,1757442650270,-483.29408813,0.00013972,2]
[384492806,1757442650279,-480.0,0.00013972,2]
[384492807,1757442650288,-151.0,0.00013972,2]
[384492808,1757442650297,-151.0,0.00013972,2]
[384492809,1757442650306,-151.0,0.00013972,2]
[384492810,1757442650315,-151.0,0.00013972,2]
[384492811,1757442650324,-522.24037431,0.00013972,2]
[384492812,1757442650333,-480.0,0.00013972,2]
[384492813,1757442650342,-2146.51,0.00013972,2]
[384492814,1757442650351,-656.04,0.00013972,2]
[384492815,1757442650360,-480.0,0.00013972,2]
[384492816,1757442650370,-697.53,0.00013972,2]
[384492818,1757442650379,-196.40320907,0.00013972,2]
[384492819,1757442650388,-536.27,0.00013972,2]
[384492821,1757442650397,-480.0,0.00013972,2]
[384492823,1757442650406,-480.0,0.00013972,2]
[384492825,1757442650415,-480.0,0.00013972,2]
[384492827,1757442650424,-577.9,0.00013972,2]
[384492829,1757442650434,-727.31,0.00013972,2]
[384492831,1757442650443,-480.0,0.00013972,2]
[384492833,1757442650452,-480.0,0.00013972,2]
[384492835,1757442650461,-480.0,0.00013972,2]
[384492837,1757442650471,-480.0,0.00013972,2]
[384492839,1757442650480,-480.0,0.00013972,2]
[384492841,1757442650489,-480.0,0.00013972,2]
[384492843,1757442650499,-480.0,0.00013972,2]
[384492845,1757442650508,-567.2,0.00013972,2]
[384492847,1757442650517,-480.0,0.00013972,2]
[384492849,1757442650526,-480.0,0.00013972,2]
[384492851,1757442650535,-480.0,0.00013972,2]
[384492853,1757442650544,-480.0,0.00013972,2]
[384492855,1757442650554,-480.0,0.00013972,2]
[384492857,1757442650563,-261.6,0.00013972,2]
[384492859,1757442650573,-480.0,0.00013972,2]